bitfinex/quotes_ETHUSD_20260106
["timestamp","ask_amount","ask_price","bid_price","bid_amount"]
[1767728072817,1.86207211,3223.3,3222.3,1.30132503]
[1767728073120,0.5252082,3223.3,3222.3,1.30132503]
[1767728073316,1.3382082,3223.3,3222.3,1.30132503]
[1767728074197,1.3382082,3223.3,3222.4,7.50787915]
[1767728074398,4.44063934,3223.3,3222.4,4.40460209]
[1767728074597,1.33686391,3223.1,3222.4,3.10327706]
[1767728074794,1.33686391,3223.1,3222.1,4.40481132]
[1767728075220,1.33686391,3223.1,3222.1,1.30132503]
[1767728075412,1.33686391,3223.1,3222.2,3.10341864]
[1767728075614,1.33686391,3223.1,3222.2,3.10346115]
[1767728075818,1.33686391,3223.1,3221.6,3.91701784]
[1767728075819,1.51495669,3223.0,3221.5,1.30132503]
[1767728076002,1.51495669,3223.0,3221.7,3.10388275]
[1767728076206,1.51495669,3223.0,3221.8,3.10385262]
[1767728076423,1.33686391,3222.8,3221.6,3.1040414]
[1767728076628,6.20559122,3222.9,3221.6,3.1040414]
[1767728076629,1.33686391,3222.6,3221.6,3.1040414]
[1767728077504,1.56724551,3222.7,3221.7,1.30132503]
[1767728077742,0.75424551,3222.7,3221.7,1.30132503]
[1767728078039,1.56724551,3222.7,3221.7,1.30132503]
[1767728078743,1.56724551,3222.7,3221.6,6.20808907]
[1767728078744,1.33686391,3222.6,3221.8,9.31156494]
[1767728078916,3.1021827,3223.6,3221.8,9.31156494]
[1767728078917,9.51197435,3223.8,3221.9,1.30132503]
[1767728079112,1.33468475,3223.6,3221.9,1.30132503]
[1767728079413,1.33177335,3223.4,3221.9,1.30132503]
[1767728080325,1.33177335,3223.4,3221.9,1.39496091]
[1767728080643,1.33177335,3223.4,3222.2,9.31040901]
[1767728080824,1.33177335,3223.4,3222.4,1.30132503]
[1767728081457,3.91494998,3223.8,3222.4,1.30132503]
[1767728081458,1.32603807,3223.7,3222.4,1.30132503]
[1767728081935,1.32603807,3223.7,3222.3,0.813]
[1767728082841,1.32320874,3223.5,3222.4,6.20655412]
[1767728083138,1.32320874,3223.5,3222.5,0.70195541]
[1767728084140,3.10212185,3223.6,3222.7,1.30132503]
[1767728084543,0.813,3223.8,3222.7,1.30132503]
[1767728085134,0.001,3223.4,3222.7,1.30132503]
[1767728085339,0.001,3223.4,3222.8,1.30132503]
[1767728086225,0.001,3223.4,3223.0,1.30132503]
[1767728088550,0.001,3223.4,3222.8,3.10285123]
[1767728088853,0.001,3223.4,3222.8,4.40417626]
[1767728089049,0.001,3223.4,3222.9,3.10279054]
[1767728089852,0.001,3223.4,3223.0,3.10268727]
[1767728090054,0.001,3223.4,3223.1,1.30132503]
[1767728092228,0.001,3223.4,3223.2,1.30132503]
[1767728094266,1.29188377,3223.9,3223.3,3.10241057]
[1767728094444,0.813,3224.0,3223.4,1.30132503]
[1767728094846,3.91474499,3224.0,3223.4,1.30132503]
[1767728096478,7.01648998,3224.0,3223.4,1.30132503]
[1767728096659,0.701649,3223.9,3223.4,1.30132503]
[1767728097852,0.701649,3223.9,3223.1,4.35686456]
[1767728098863,3.80354541,3223.9,3223.1,1.254307]
[1767728099380,3.80354541,3223.9,3223.1,4.35686131]
[1767728100371,1.27547353,3223.8,3222.6,1.254307]
[1767728100680,0.50790189,3223.7,3223.2,1.254307]
[1767728101084,3.10183318,3223.9,3223.2,3.10249866]
[1767728101085,1.27547353,3223.8,3223.2,3.10249866]
[1767728101280,1.27547353,3223.8,3223.1,3.10255993]
[1767728101579,1.27547353,3223.8,3222.7,1.254307]
[1767728101781,1.27547353,3223.8,3222.6,3.10304395]
[1767728101980,1.27547353,3223.8,3222.4,3.1032072]
[1767728102181,1.24828902,3223.6,3222.5,1.22615156]
[1767728102354,1.24828902,3223.4,3222.5,1.22615156]
[1767728102555,1.24828902,3223.4,3222.2,1.22615156]
[1767728102781,1.24828902,3223.4,3222.4,1.22615156]
[1767728103055,1.24828902,3223.2,3222.0,0.002]
[1767728103267,1.24828902,3223.0,3222.2,1.22615156]
[1767728103465,0.813,3222.9,3222.2,1.22615156]
[1767728104086,0.813,3222.9,3222.2,4.32956399]
[1767728104382,0.813,3222.9,3222.2,1.22615156]
[1767728105286,3.91584037,3222.9,3222.2,1.22615156]
[1767728105489,3.91579762,3222.9,3222.3,1.22615156]
[1767728106367,4.72319304,3222.9,3222.3,1.22615156]
[1767728107986,1.24828902,3222.8,3222.0,0.002]
[1767728109372,1.24828902,3222.8,3222.6,0.00099897]
[1767728109570,1.24828902,3222.8,3222.0,0.002]
[1767728109966,1.24828902,3222.6,3222.3,0.002]
[1767728110165,1.24828902,3222.4,3222.0,0.002]
[1767728110386,2.06128902,3222.3,3222.0,0.002]
[1767728112877,1.24828902,3222.2,3221.6,0.002]
[1767728113897,1.2464245,3222.0,3221.1,4.33059228]
[1767728114098,4.96620441,3222.1,3221.1,4.33059228]
[1767728114099,4.35018315,3221.9,3221.1,4.33059228]
[1767728114472,3.10375865,3221.9,3221.2,1.22615156]
[1767728115306,7.45015508,3221.9,3221.0,1.22815156]
[1767728115491,0.74501551,3221.8,3221.0,1.22815156]
[1767728116301,0.74501551,3221.8,3221.1,1.22615156]
[1767728116302,3.10395133,3221.7,3221.1,1.22615156]
[1767728119788,6.20790266,3221.7,3221.1,1.22615156]
[1767728120329,6.20790266,3221.7,3221.0,0.002]
[1767728120330,7.44147353,3221.7,3221.0,0.002]
[1767728120535,1.23357087,3221.6,3221.0,0.002]
[1767728120710,0.74414735,3221.5,3221.0,0.002]
[1767728121083,1.23357087,3221.4,3221.0,0.002]
[1767728122083,3.10420275,3221.5,3221.0,0.002]
[1767728122392,4.33591417,3221.6,3221.4,0.002]
[1767728122840,7.44000543,3221.6,3221.0,0.002]
[1767728123002,0.74400054,3221.5,3221.0,0.002]
[1767728123202,1.97409449,3221.5,3221.0,0.002]
[1767728125329,1.97409449,3221.5,3220.9,0.002]
[1767728125330,1.22506226,3221.3,3220.9,0.002]
[1767728125501,3.10424039,3221.4,3220.9,0.002]
[1767728126430,5.07324339,3221.5,3220.9,0.002]
[1767728126631,0.50731261,3221.4,3220.9,1.22815156]
[1767728127605,3.61161319,3221.4,3220.9,1.22815156]
[1767728127806,6.71591377,3221.4,3220.9,1.22815156]
[1767728128024,7.96420279,3221.4,3220.6,0.002]
[1767728128221,0.67159138,3221.3,3220.6,1.22815156]
[1767728129906,0.67159138,3221.3,3220.7,1.22615156]
[1767728130130,0.813,3221.8,3220.7,1.22615156]
[1767728130302,3.10395133,3221.7,3220.7,1.22615156]
[1767728130507,6.20798465,3221.7,3220.7,1.22615156]
[1767728131119,1.24828902,3221.6,3220.7,1.22615156]
[1767728132105,7.47543425,3221.5,3220.7,1.22615156]
[1767728132302,0.74754343,3221.4,3220.7,1.22615156]
[1767728132805,0.74754343,3221.4,3220.8,1.22454315]
[1767728133003,3.10409342,3221.6,3220.8,1.22454315]
[1767728134134,3.10409342,3221.6,3221.0,1.22654315]
[1767728134341,0.001,3221.5,3221.0,1.22654315]
[1767728136814,0.001,3221.5,3221.1,1.22454315]
[1767728137023,0.001,3221.5,3221.2,1.22454315]
[1767728138038,0.001,3221.5,3221.0,1.22654315]
[1767728138828,0.001,3221.5,3221.0,4.33116338]
[1767728139535,0.001,3221.5,3221.0,1.22654315]
[1767728140047,0.001,3221.5,3221.0,4.33113222]
[1767728141421,0.001,3221.5,3221.1,1.22454315]
[1767728142723,0.001,3221.5,3221.0,0.002]
[1767728143048,0.001,3221.5,3221.0,1.22654315]
[1767728143543,0.001,3221.5,3221.1,1.22454315]
[1767728145555,0.001,3221.5,3221.1,4.32903809]
[1767728146629,0.001,3221.5,3221.1,1.22454315]
[1767728146935,0.001,3221.2,3221.1,3.1045295]
[1767728147262,0.001,3221.5,3221.1,4.32907265]
[1767728148141,0.001,3221.5,3221.0,3.10660993]
[1767728148463,0.001,3221.5,3221.1,3.10450998]
[1767728149364,0.001,3221.5,3221.1,4.32905313]
[1767728152152,0.001,3221.5,3221.0,4.33108172]
[1767728154003,0.001,3221.5,3221.1,1.22454315]
[1767728154206,1.26814619,3221.5,3221.0,0.002]
[1767728155163,0.813,3221.4,3221.0,0.002]
[1767728155360,0.43821219,3221.5,3221.0,1.22654315]
[1767728155361,0.814,3221.5,3221.0,1.22654315]
[1767728157889,0.814,3221.5,3221.1,1.19389891]
[1767728158578,0.001,3221.2,3221.0,0.002]
[1767728158986,0.001,3221.2,3221.0,1.19589891]
[1767728160300,0.001,3221.2,3221.0,4.30052361]
[1767728160600,0.814,3221.5,3221.2,1.19389891]
[1767728160802,1.18598341,3221.4,3221.0,6.95178434]
[1767728161290,1.18598341,3221.4,3221.0,3.84715845]
[1767728162477,1.18598341,3221.4,3221.0,3.1066247]
[1767728163592,0.814,3221.5,3221.0,3.1066247]
[1767728163782,0.814,3221.5,3221.1,1.14822788]
[1767728164111,0.814,3221.5,3221.0,3.1066247]
[1767728164506,0.814,3221.5,3221.0,0.002]
[1767728165702,1.26656852,3221.4,3221.0,0.002]
[1767728166996,4.37083409,3221.4,3221.0,0.002]
[1767728167623,1.26656852,3221.4,3221.0,0.002]
[1767728169216,4.3708115,3221.4,3221.0,0.002]
[1767728172835,1.26656852,3221.4,3221.0,0.002]
[1767728173303,1.83689069,3221.4,3221.0,0.002]
[1767728173504,4.94114071,3221.4,3221.0,0.002]
[1767728177436,1.83689069,3221.4,3221.0,0.002]
[1767728177818,4.94114341,3221.4,3221.0,0.002]
[1767728180136,1.83689069,3221.4,3221.0,0.002]
[1767728181041,0.001,3221.5,3221.0,1.15022788]
[1767728182039,0.001,3221.5,3221.1,1.14822788]
[1767728182414,1.26756852,3221.5,3221.0,0.002]
[1767728184337,4.37177257,3221.5,3221.0,0.002]
[1767728184640,5.20065577,3221.5,3221.0,0.002]
[1767728186541,1.26656852,3221.4,3220.6,0.002]
[1767728187225,1.26656852,3221.4,3220.4,0.002]
[1767728188852,1.26656852,3221.2,3220.4,0.002]
[1767728189023,9.31301025,3221.3,3220.2,0.002]
[1767728189024,1.26656852,3221.0,3220.2,0.002]
[1767728189219,1.26656852,3220.8,3220.2,0.002]
[1767728191134,6.20983016,3220.7,3220.2,0.002]
[1767728192438,3.10491508,3220.7,3220.2,0.002]
[1767728193052,3.1051079,3220.5,3220.2,0.002]
[1767728194045,5.06365462,3220.6,3220.2,0.002]
[1767728194259,5.88051159,3220.6,3220.2,0.002]
[1767728195368,1.62985697,3220.6,3220.2,0.002]
[1767728195574,0.813,3220.6,3220.2,0.002]
[1767728197259,3.91802044,3220.6,3220.2,0.002]
[1767728202179,7.02304088,3220.6,3220.2,0.002]
[1767728202678,1.14559983,3220.5,3220.0,0.002]
[1767728203688,1.14559983,3220.5,3219.8,0.002]
[1767728203986,7.02304088,3220.6,3219.8,0.002]
[1767728203987,1.9624639,3220.4,3219.8,0.002]
[1767728204391,6.21060148,3220.3,3219.8,0.002]
[1767728204765,6.21160148,3220.3,3219.8,0.002]
[1767728205277,1.14559983,3220.2,3219.5,0.002]
[1767728205583,1.14559983,3220.0,3219.5,0.002]
[1767728206453,4.25124472,3220.0,3219.5,0.002]
[1767728207266,7.35688961,3220.0,3219.5,0.002]
[1767728208082,7.35688961,3220.0,3219.3,0.002]
[1767728208083,1.14559983,3219.9,3219.3,0.002]
[1767728208284,0.73568896,3219.8,3219.3,0.002]
[1767728208483,3.10587942,3219.7,3219.3,0.002]
[1767728209359,0.73568896,3219.8,3219.3,1.2177987]
[1767728209560,3.1057578,3219.9,3219.3,1.2177987]
[1767728209794,6.2115156,3219.9,3219.3,1.2177987]
[1767728211200,1.14559983,3219.9,3219.3,0.002]
[1767728212053,6.21118012,3220.0,3219.3,1.2177987]
[1767728212259,0.814,3219.9,3219.3,1.2177987]
[1767728212670,1.631078,3219.9,3219.3,1.2177987]
[1767728213268,3.10578296,3219.8,3219.3,1.2177987]
[1767728213469,7.35716575,3219.8,3219.3,0.002]
[1767728213693,1.14559983,3219.7,3219.2,0.002]
[1767728213993,1.14559983,3219.7,3219.0,1.2177987]
[1767728213994,0.73571658,3219.6,3219.0,1.2177987]
[1767728214761,1.88131641,3219.6,3219.0,0.002]
[1767728215200,1.14559983,3219.5,3219.0,0.002]
[1767728215370,4.10838529,3219.4,3218.8,1.2177987]
[1767728215688,5.25398512,3219.4,3218.8,1.2177987]
[1767728215856,5.25398512,3219.4,3218.8,0.002]
[1767728216453,1.14559983,3219.3,3218.6,1.2157987]
[1767728216659,1.14559983,3219.1,3218.3,4.32296848]
[1767728216854,1.14559983,3219.1,3218.3,3.10716978]
[1767728217260,1.17218866,3219.0,3218.2,3.10732707]
[1767728217707,1.17218866,3218.9,3218.1,4.32318139]
[1767728217935,1.17218866,3218.9,3217.9,3.10754727]
[1767728217936,1.17218866,3218.8,3217.9,1.16288353]
[1767728218190,1.17218866,3218.8,3218.0,3.10748107]
[1767728218400,1.17218866,3218.8,3218.1,3.10741485]
[1767728218875,1.42195515,3218.8,3218.0,4.27036353]
[1767728219183,1.42195515,3218.8,3218.0,4.27037089]
[1767728219385,1.17218866,3218.8,3218.0,4.27037089]
[1767728219588,0.83602388,3219.2,3218.0,4.27037089]
[1767728219589,1.17218866,3219.3,3218.1,1.19395776]
[1767728219887,0.814,3219.4,3218.1,1.19395776]
[1767728220059,0.001,3219.6,3218.2,1.16288353]
[1767728220257,0.814,3219.5,3218.4,1.16288353]
[1767728220497,0.814,3219.5,3218.6,1.16288353]
[1767728220693,0.001,3219.6,3218.8,1.16288353]
[1767728221098,1.17218866,3219.5,3218.4,1.16288353]
[1767728221291,1.17218866,3219.5,3218.6,1.16288353]
[1767728221490,3.10697636,3219.6,3218.6,1.16288353]
[1767728221491,1.1852351,3219.3,3218.6,1.16288353]
[1767728221687,0.814,3219.2,3218.6,1.16288353]
[1767728222004,0.814,3219.2,3218.6,4.26981555]
[1767728222194,0.814,3219.2,3218.7,1.19250292]
[1767728223096,0.001,3219.6,3218.8,1.19250292]
[1767728223297,0.814,3219.5,3218.8,1.19250292]
[1767728223700,0.814,3219.5,3218.8,7.40597953]
[1767728223906,0.814,3219.5,3218.9,1.19250292]
[1767728225020,0.814,3219.5,3218.7,3.84744765]
[1767728225172,5.10531015,3219.5,3218.7,1.19250292]
[1767728225376,1.1852351,3219.4,3218.4,1.19250292]
[1767728225606,1.1852351,3219.4,3218.7,3.10679099]
[1767728225992,5.35473828,3222.0,3219.5,1.19250292]
[1767728225993,3.10546332,3220.2,3219.5,1.19250292]
[1767728226172,0.814,3220.1,3219.5,1.19250292]
[1767728226377,0.39194633,3220.0,3219.5,1.19250292]
[1767728227498,0.814,3220.1,3219.5,1.19250292]
[1767728227687,0.814,3220.1,3219.7,1.19250292]
[1767728229302,0.001,3220.3,3219.7,1.19250292]
[1767728229910,0.001,3220.3,3219.6,6.21195178]
[1767728229911,0.001,3220.3,3219.9,1.19250292]
[1767728231014,0.001,3220.3,3219.3,4.97126803]
[1767728231015,1.1852351,3220.2,3219.5,3.10603307]
[1767728231994,1.1852351,3220.2,3219.4,7.40484062]
[1767728232729,4.97126803,3220.8,3219.4,7.40484062]
[1767728232730,1.1852351,3221.0,3220.1,1.19250292]
[1767728232930,1.1852351,3221.0,3220.0,4.97126803]
[1767728232931,4.28964968,3221.3,3220.4,1.19250292]
[1767728233243,0.814,3221.1,3220.4,1.19250292]
[1767728233625,1.01402351,3221.1,3220.4,1.19250292]
[1767728234222,1.01402351,3221.1,3220.5,3.1051079]
[1767728234528,1.01402351,3221.1,3220.5,6.2102158]
[1767728234829,1.01402351,3221.1,3220.5,3.1051079]
[1767728235925,1.01402351,3221.1,3220.5,7.40271872]
[1767728236219,1.01402351,3221.1,3219.9,3.10563374]
[1767728236220,1.1862351,3221.2,3220.7,6.20983016]
[1767728236422,1.1862351,3221.2,3220.7,7.40233308]
[1767728236423,0.001,3221.2,3220.7,7.40233308]
[1767728236836,0.001,3221.5,3221.0,1.19250292]
[1767728236837,0.815,3221.5,3221.0,1.19250292]
[1767728237004,0.815,3221.5,3220.7,6.20983016]
[1767728237005,1.1852351,3221.4,3220.7,6.20983016]
[1767728237209,1.1852351,3221.4,3220.7,6.6731126]
[1767728238246,1.1852351,3221.4,3220.7,9.77802768]
[1767728238419,1.1852351,3221.4,3220.7,6.6731126]
[1767728238845,1.1862351,3221.5,3220.7,7.86561552]
[1767728239454,0.814,3221.8,3220.8,1.19250292]
[1767728239740,0.814,3221.8,3220.7,9.77802768]
[1767728239741,1.9992351,3221.8,3220.9,2.28955598]
[1767728240135,3.103303,3222.4,3221.2,1.19250292]
[1767728240324,4.2885381,3222.4,3221.2,1.19250292]
[1767728240528,1.1852351,3222.2,3221.1,3.1045295]
[1767728240843,1.1852351,3222.0,3221.1,3.1045295]
[1767728241039,0.001,3221.2,3221.1,3.1045295]
[1767728241335,1.1852351,3222.0,3221.1,6.209059]
[1767728243147,1.1852351,3222.0,3221.0,6.20925178]
[1767728246352,3.30354947,3222.1,3221.1,1.19250292]
[1767728246557,0.33035495,3222.0,3221.1,1.19250292]
[1767728248948,0.33035495,3222.0,3221.3,1.19250292]
[1767728250679,3.43402698,3222.0,3221.3,1.19250292]
[1767728251184,0.33035495,3222.0,3221.3,4.29674719]
[1767728253086,0.33035495,3222.0,3221.4,1.17697407]
[1767728253268,0.33035495,3222.0,3221.4,4.28117042]
[1767728253679,0.001,3221.7,3221.4,4.28117042]
[1767728254561,0.001,3221.7,3221.4,1.17697407]
[1767728256280,0.001,3221.7,3221.4,4.28120295]
[1767728256853,0.001,3221.7,3221.2,3.10438196]
[1767728257578,0.001,3221.7,3221.2,7.38578916]
[1767728257793,0.813,3222.2,3221.3,0.03104336]
[1767728257956,1.953775,3222.2,3221.5,1.17697407]
[1767728258374,5.05726102,3222.2,3221.5,1.17697407]
[1767728258576,1.953775,3222.5,3221.5,1.17697407]
[1767728258798,1.140775,3222.4,3221.5,1.17697407]
[1767728259484,1.140775,3222.2,3221.5,4.28106909]
[1767728259703,1.140775,3222.2,3221.5,1.17697407]
[1767728260989,1.140775,3222.2,3221.5,4.28103751]
[1767728261507,4.24427598,3222.2,3221.5,1.17697407]
[1767728261717,1.140775,3222.1,3221.5,1.17697407]
[1767728263091,1.140775,3222.1,3221.4,3.10423907]
[1767728263275,1.140775,3222.0,3221.4,3.10423907]
[1767728263703,1.140775,3222.0,3221.3,1.17697407]
[1767728263704,4.24446414,3222.0,3221.3,4.28129057]
[1767728264620,1.140775,3221.9,3221.2,3.10438858]
[1767728265126,1.140775,3221.9,3221.1,0.002]
[1767728265127,1.140775,3221.7,3221.1,0.002]
[1767728265311,1.140775,3221.7,3220.8,0.002]
[1767728265486,1.140775,3221.5,3220.8,0.002]
[1767728265683,3.10424039,3221.4,3220.8,0.002]
[1767728265895,1.140775,3221.5,3220.8,0.002]
[1767728265896,4.24496873,3221.5,3220.8,0.002]
[1767728266513,4.24496873,3221.5,3221.4,0.002]
[1767728266712,5.04093395,3221.5,3221.4,0.002]
[1767728267320,1.140775,3221.4,3220.8,0.002]
[1767728267707,1.140775,3221.4,3220.8,3.10681848]
[1767728268088,1.140775,3221.4,3220.8,0.002]
[1767728268289,1.64486839,3221.4,3220.8,0.002]
[1767728268901,1.64486839,3221.4,3220.8,3.10681038]
[1767728269188,1.140775,3221.3,3220.8,0.002]
[1767728269586,0.50409339,3221.4,3220.8,0.002]
[1767728269915,3.60834655,3221.4,3220.8,0.002]
[1767728270133,0.55450868,3221.3,3220.8,0.002]
[1767728271490,3.65885779,3221.3,3220.8,0.002]
[1767728271809,0.55450868,3221.3,3220.8,0.002]
[1767728272006,0.50409339,3221.4,3220.8,0.002]
[1767728272007,1.140775,3221.5,3220.8,0.002]
[1767728272207,1.140775,3221.7,3220.8,1.21002225]
[1767728272409,1.140775,3221.7,3220.8,1.17897407]
[1767728272611,4.24473577,3221.7,3220.8,1.17897407]
[1767728273734,4.24473577,3221.7,3220.9,4.28169635]
[1767728274232,1.140775,3221.6,3220.9,1.17697407]
[1767728275133,1.140775,3221.3,3220.8,0.002]
[1767728275334,1.140775,3221.2,3220.2,4.28232249]
[1767728275532,1.140775,3221.2,3220.1,0.002]
[1767728275533,1.140775,3221.0,3220.1,0.002]
[1767728275705,1.140775,3220.8,3220.1,0.002]
[1767728276039,1.140775,3220.6,3220.1,0.002]
[1767728279241,1.140775,3220.6,3220.4,0.002]
[1767728280043,1.16138655,3220.8,3220.4,0.002]
[1767728280240,1.33859608,3220.8,3220.4,0.002]
[1767728280627,1.33859608,3220.8,3220.1,0.002]
[1767728282169,4.22355786,3220.7,3220.1,0.002]
[1767728282856,7.32847294,3220.7,3220.1,0.002]
[1767728283061,1.11864278,3220.6,3220.1,0.002]
[1767728283252,1.86921103,3220.6,3220.1,0.002]
[1767728285531,4.97424066,3220.6,3220.1,0.002]
[1767728286561,1.86921103,3220.6,3220.1,0.002]
[1767728286754,1.11864278,3220.5,3220.1,0.002]
[1767728288558,4.22376564,3220.5,3220.1,0.002]
[1767728288758,4.72119903,3220.5,3220.1,0.002]
[1767728290889,1.61607617,3220.5,3220.1,0.002]
[1767728291089,1.11864278,3220.5,3220.4,0.002]
[1767728291277,4.22375068,3220.5,3220.4,0.002]
[1767728291896,1.11864278,3220.4,3220.1,0.002]
[1767728292605,1.11864278,3220.3,3220.1,0.002]
[1767728294561,1.11864278,3220.2,3220.1,0.002]
[1767728295716,1.54103852,3220.2,3220.1,0.002]
[1767728296010,1.11864278,3220.1,3219.5,0.002]
[1767728296197,1.11864278,3220.1,3218.9,0.002]
[1767728296505,1.11864278,3220.1,3218.9,3.10860098]
[1767728297008,1.11864278,3219.9,3218.9,0.002]
[1767728297816,1.11864278,3219.9,3218.9,1.15616719]
[1767728298028,1.11864278,3220.4,3219.0,0.03106554]
[1767728298186,1.11864278,3220.2,3219.1,1.12310068]
[1767728298507,1.31190706,3220.2,3219.1,1.12310068]
[1767728298810,1.31190706,3220.2,3218.9,0.002]
[1767728298811,4.22413639,3220.1,3219.3,1.12310068]
[1767728299595,1.11864278,3220.0,3219.0,3.10648533]
[1767728299795,1.11864278,3220.0,3218.9,1.12510068]
[1767728301013,1.11864278,3219.8,3219.0,4.22965551]
[1767728301210,1.11864278,3219.8,3219.0,4.65612781]
[1767728301407,1.11864278,3219.8,3219.1,1.12310068]
[1767728301911,1.11864278,3219.8,3219.1,1.15416526]
[1767728302509,1.11864278,3219.8,3219.0,6.63958196]
[1767728302695,1.11864278,3219.8,3219.1,0.03106458]
[1767728303012,1.11864278,3219.8,3219.2,3.10636182]
[1767728303526,1.11864278,3219.8,3219.0,3.10649113]
[1767728303527,1.11864278,3219.7,3219.0,3.10649113]
[1767728303896,1.11864278,3219.7,3218.5,3.9199674]
[1767728304128,1.11864278,3219.7,3218.5,0.813]
[1767728304129,6.09001014,3219.7,3218.5,0.813]
[1767728304318,1.11864278,3219.6,3218.4,3.10704621]
[1767728304521,4.97136736,3219.7,3218.4,3.10711737]
[1767728304522,1.11864278,3219.4,3218.4,3.10711737]
[1767728304827,1.11864278,3219.2,3218.4,3.10708531]
[1767728305127,1.11864278,3219.2,3218.5,3.10702017]
[1767728305699,1.11864278,3219.2,3218.5,6.21402996]
[1767728305902,1.11864278,3219.2,3218.6,0.0310694]
[1767728306146,1.11864278,3219.6,3218.5,6.21402996]
[1767728306436,1.11864278,3219.5,3218.6,1.85681374]
[1767728306732,1.11864278,3219.5,3218.6,2.66981374]
[1767728306905,1.11864278,3219.8,3218.7,1.12310068]
[1767728307733,3.10587942,3219.7,3218.8,6.2134957]
[1767728307932,1.11864278,3219.7,3218.8,6.2134957]
[1767728308097,1.11864278,3219.7,3218.9,0.73365964]
[1767728308303,3.10572754,3219.9,3219.0,1.12310068]
[1767728308627,4.22437032,3219.9,3219.0,1.12310068]
[1767728308823,1.11864278,3219.8,3218.9,0.73365964]
[1767728309033,1.11864278,3219.8,3218.4,1.93610068]
[1767728309216,1.11864278,3219.6,3218.5,3.10699219]
[1767728309625,1.11864278,3219.6,3218.6,3.10693332]
[1767728309803,1.11864278,3219.4,3218.5,3.10702152]
[1767728312528,4.2356993,3219.4,3218.5,3.10702152]
[1767728313438,7.34187722,3219.4,3218.5,3.10702152]
[1767728313737,8.07606494,3219.4,3218.5,3.10702152]
[1767728314145,4.96988702,3219.4,3218.5,3.10702152]
[1767728314635,8.07606494,3219.4,3218.5,3.10702152]
[1767728314845,1.12952138,3219.3,3218.4,0.813]
[1767728315339,1.12952138,3219.3,3218.4,3.92008597]
[1767728315517,0.80760649,3219.2,3218.4,3.92008597]
[1767728315843,0.80760649,3219.2,3218.8,0.002]
[1767728317038,3.10645832,3219.1,3218.8,0.002]
[1767728317638,3.91400873,3219.2,3218.8,0.002]
[1767728317930,0.81498612,3219.1,3218.8,0.002]
[1767728318139,0.81498612,3219.1,3218.4,3.10711421]
[1767728319539,0.81498612,3219.1,3218.3,7.41318221]
[1767728319746,3.92145584,3219.1,3218.3,4.30595169]
[1767728320253,0.81498612,3219.1,3218.4,1.19872825]
[1767728320419,1.12952138,3219.3,3218.4,1.94004647]
[1767728320819,4.23584834,3219.3,3218.4,1.94004647]
[1767728321020,0.814,3219.3,3218.5,1.19872825]
[1767728321217,7.34128022,3219.7,3218.5,1.19872825]
[1767728321541,0.814,3219.6,3218.5,1.19872825]
[1767728321751,3.92005895,3219.6,3218.8,1.19872825]
[1767728321942,3.10605895,3219.6,3218.8,1.19872825]
[1767728322128,6.2121179,3219.6,3218.8,1.19872825]
[1767728323136,3.10605895,3219.6,3218.8,1.19872825]
[1767728324046,3.10605895,3219.6,3218.8,4.30537982]
[1767728324245,3.10592428,3219.7,3218.9,1.19872825]
[1767728326347,3.92082868,3219.8,3219.0,4.30528308]
[1767728326530,3.92082868,3219.8,3219.1,1.19872825]
[1767728327647,0.001,3219.8,3219.1,1.19872825]
[1767728328345,0.001,3219.8,3219.3,1.19872825]
[1767728328545,0.001,3219.4,3219.3,1.19872825]
[1767728328746,1.13052138,3219.8,3219.2,3.10636182]
[1767728329052,1.13052138,3219.8,3219.3,0.31063618]
[1767728330660,1.13052138,3219.8,3219.3,3.41684891]
[1767728332123,1.13052138,3219.8,3219.3,0.31063618]
[1767728332324,1.13052138,3219.8,3219.3,3.10625591]
[1767728332650,1.13052138,3219.8,3218.9,6.21330268]
[1767728333049,1.13052138,3219.8,3218.9,3.10665134]
[1767728333254,1.13052138,3219.8,3218.9,6.24436919]
[1767728333462,1.13052138,3219.8,3218.9,6.21330268]
[1767728333650,1.13052138,3219.8,3219.0,1.01349634]
[1767728333830,1.13052138,3219.8,3219.0,2.21222459]
[1767728334030,0.001,3219.8,3219.1,1.19872825]
[1767728334355,3.91935903,3220.3,3219.6,1.19872825]
[1767728335159,3.91935903,3220.3,3219.6,4.30470387]
[1767728335353,3.91935903,3220.3,3219.6,1.19872825]
[1767728335859,3.91935903,3220.3,3219.6,4.30464622]
[1767728336432,3.91935903,3220.3,3219.6,1.19872825]
[1767728336633,4.73476906,3220.3,3219.6,1.19872825]
[1767728336980,4.73476906,3220.3,3219.6,4.30467235]
[1767728337366,4.73476906,3220.3,3219.7,1.19872825]
[1767728339543,7.84012809,3220.3,3219.7,1.19872825]
[1767728339750,4.73476906,3220.3,3219.7,1.19872825]
[1767728340244,0.001,3220.0,3219.7,1.19872825]
[1767728340446,0.001,3220.0,3219.8,1.19872825]
[1767728341479,0.001,3220.0,3219.8,4.30450172]
[1767728341665,3.10489416,3220.8,3219.9,1.12950019]
[1767728341958,1.13050367,3220.6,3219.8,6.21155643]
[1767728342160,1.13050367,3220.6,3219.8,3.10577347]
[1767728342362,1.13050367,3220.6,3219.9,0.65306792]
[1767728343779,1.13050367,3220.6,3220.0,3.10559006]
[1767728345654,4.24869939,3220.7,3220.0,3.10559006]
[1767728345958,1.14378198,3220.7,3220.0,4.18668958]
[1767728347982,0.814,3220.8,3220.0,7.29227964]
[1767728348166,0.814,3220.8,3220.1,1.08109952]
[1767728348570,3.91885036,3220.8,3220.1,1.08109952]
[1767728348755,3.10485036,3220.8,3220.1,1.08109952]
[1767728348960,3.91885036,3220.8,3220.1,1.08109952]
[1767728349167,1.14378198,3220.7,3219.9,4.18678038]
[1767728349360,1.96053025,3220.7,3219.9,4.18671234]
[1767728349561,0.81674827,3220.7,3220.0,4.18668783]
[1767728349858,0.814,3220.8,3220.1,1.08109952]
[1767728350061,1.14378198,3220.7,3219.8,6.21156592]
[1767728350269,3.91882824,3220.8,3219.9,1.08109952]
[1767728350676,3.10482824,3220.8,3219.9,1.08109952]
[1767728352092,5.06261022,3220.8,3220.0,1.08109952]
[1767728352290,0.001,3220.5,3220.0,1.08109952]
[1767728353961,0.001,3220.5,3220.0,4.18668809]
[1767728354289,0.001,3220.5,3220.0,1.08109952]
[1767728354492,0.001,3220.5,3220.0,4.18668823]
[1767728355096,0.001,3220.5,3220.0,3.10558871]